[Event "Titled Tuesday Blitz October 11 Late 2022"]
[White "Rose, Felix"]
[Black "Joubert, Dantelle"]
[WhiteFideId "5105722"]
[BlackFideId "14310813"]
[WhiteElo "2039"]
[BlackElo "1507"]
[Result "1-0"]
[Round "09"]
[TimeControl "180+1"]
[Date "2022.10.12"]
[WhiteClock "0:00:05"]
[BlackClock "0:00:01"]

1. d4 {[%clk 0:02:59]}  d5 {[%clk 0:02:59]} 2. Nc3 {[%clk 0:02:58]}  e6 {[%clk 0:02:48]} 3. Bf4 {[%clk 0:02:59]}  c5 {[%clk 0:02:45]} 4. e4 {[%clk 0:02:47]}  cxd4 {[%clk 0:02:42]} 5. Qxd4 {[%clk 0:02:44]}  Nc6 {[%clk 0:02:42]} 6. Bb5 {[%clk 0:02:44]}  Bd7 {[%clk 0:02:28]} 7. Bxc6 {[%clk 0:02:43]}  bxc6 {[%clk 0:02:29]} 8. exd5 {[%clk 0:02:33]}  cxd5 {[%clk 0:02:28]} 9. Nf3 {[%clk 0:02:31]}  Qb6 {[%clk 0:02:24]} 10. O-O-O {[%clk 0:01:57]}  Nf6 {[%clk 0:02:02]} 11. Qxb6 {[%clk 0:01:44]}  axb6 {[%clk 0:02:02]} 12. Rhe1 {[%clk 0:01:44]}  Bb4 {[%clk 0:01:57]} 13. Be5 {[%clk 0:01:24]}  O-O {[%clk 0:01:31]} 14. a3 {[%clk 0:01:22]}  Be7 {[%clk 0:01:27]} 15. Nd4 {[%clk 0:01:01]}  Rfc8 {[%clk 0:01:21]} 16. h3 {[%clk 0:00:57]}  Bxa3 {[%clk 0:01:17]} 17. bxa3 {[%clk 0:00:28]}  Rxc3 {[%clk 0:01:12]} 18. Nxe6 {[%clk 0:00:27]}  Rcxa3 {[%clk 0:00:58]} 19. Nc7 {[%clk 0:00:23]}  Rc8 {[%clk 0:00:51]} 20. Nxd5 {[%clk 0:00:13]}  Nxd5 {[%clk 0:00:50]} 21. Rxd5 {[%clk 0:00:13]}  Be6 {[%clk 0:00:50]} 22. Rb5 {[%clk 0:00:09]}  Rc6 {[%clk 0:00:50]} 23. Rd1 {[%clk 0:00:05]}  h6 {[%clk 0:00:48]} 24. Rd6 {[%clk 0:00:05]}  Rxd6 {[%clk 0:00:37]} 25. Bxd6 {[%clk 0:00:06]}  Ra6 {[%clk 0:00:32]} 26. Bc7 {[%clk 0:00:06]}  Ra1+ {[%clk 0:00:31]} 27. Kb2 {[%clk 0:00:05]}  Rg1 {[%clk 0:00:26]} 28. g3 {[%clk 0:00:04]}  Rf1 {[%clk 0:00:21]} 29. Bxb6 {[%clk 0:00:04]}  Bd7 {[%clk 0:00:20]} 30. Rb4 {[%clk 0:00:04]}  Bc6 {[%clk 0:00:19]} 31. h4 {[%clk 0:00:04]}  g5 {[%clk 0:00:19]} 32. hxg5 {[%clk 0:00:04]}  hxg5 {[%clk 0:00:19]} 33. Be3 {[%clk 0:00:05]}  g4 {[%clk 0:00:17]} 34. Rxg4+ {[%clk 0:00:05]}  Kf8 {[%clk 0:00:16]} 35. Bc5+ {[%clk 0:00:05]}  Ke8 {[%clk 0:00:16]} 36. Rd4 {[%clk 0:00:04]}  Rxf2 {[%clk 0:00:13]} 37. Rd6 {[%clk 0:00:03]}  Rf3 {[%clk 0:00:10]} 38. Rxc6 {[%clk 0:00:03]}  Rxg3 {[%clk 0:00:10]} 39. c3 {[%clk 0:00:02]}  Rg5 {[%clk 0:00:09]} 40. Bd4 {[%clk 0:00:02]}  Kd7 {[%clk 0:00:06]} 41. Rf6 {[%clk 0:00:02]}  Ke7 {[%clk 0:00:06]} 42. Rf2 {[%clk 0:00:02]}  Rb5+ {[%clk 0:00:05]} 43. Kc2 {[%clk 0:00:02]}  Ra5 {[%clk 0:00:05]} 44. Kd3 {[%clk 0:00:02]}  Ke6 {[%clk 0:00:05]} 45. Rf6+ {[%clk 0:00:02]}  Ke7 {[%clk 0:00:05]} 46. Rf2 {[%clk 0:00:02]}  Ra4 {[%clk 0:00:05]} 47. c4 {[%clk 0:00:02]}  Ra3+ {[%clk 0:00:03]} 48. Bc3 {[%clk 0:00:03]}  f5 {[%clk 0:00:02]} 49. Rxf5 {[%clk 0:00:02]}  Ke6 {[%clk 0:00:02]} 50. Re5+ {[%clk 0:00:03]}  Kd6 {[%clk 0:00:01]} 51. Re3 {[%clk 0:00:04]}  Kc5 {[%clk 0:00:01]} 52. Re5+ {[%clk 0:00:05]}  Kc6 {[%clk 0:00:01]} 53. Rd5 {[%clk 0:00:05]} 1-0


[Site "https://www.chess.com"]

[Event "Titled Tuesday Blitz October 11 Late 2022"]
[White "Rosen, Eric"]
[Black "Remolar Gallen, Jose"]
[WhiteFideId "2032562"]
[BlackFideId "2215187"]
[WhiteElo "2362"]
[BlackElo "2214"]
[Result "1-0"]
[Round "09"]
[TimeControl "180+1"]
[Date "2022.10.12"]
[WhiteClock "0:00:52"]
[BlackClock "0:00:36"]

1. d4 {[%clk 0:03:00]}  g6 {[%clk 0:02:58]} 2. e4 {[%clk 0:02:58]}  Bg7 {[%clk 0:02:59]} 3. Nf3 {[%clk 0:02:57]}  d6 {[%clk 0:02:59]} 4. Bc4 {[%clk 0:02:58]}  Nf6 {[%clk 0:03:00]} 5. Qe2 {[%clk 0:02:59]}  O-O {[%clk 0:02:58]} 6. e5 {[%clk 0:02:59]}  dxe5 {[%clk 0:02:59]} 7. dxe5 {[%clk 0:03:00]}  Nd5 {[%clk 0:02:59]} 8. h3 {[%clk 0:03:00]}  c6 {[%clk 0:02:47]} 9. O-O {[%clk 0:03:00]}  h6 {[%clk 0:02:41]} 10. Rd1 {[%clk 0:02:59]}  Be6 {[%clk 0:02:41]} 11. Bb3 {[%clk 0:02:57]}  Qc7 {[%clk 0:02:36]} 12. c4 {[%clk 0:02:45]}  Nb6 {[%clk 0:02:35]} 13. Bf4 {[%clk 0:02:44]}  N8d7 {[%clk 0:02:35]} 14. Nbd2 {[%clk 0:02:42]}  Nc5 {[%clk 0:02:33]} 15. Bc2 {[%clk 0:02:40]}  a5 {[%clk 0:02:14]} 16. Qe3 {[%clk 0:02:25]}  Ncd7 {[%clk 0:01:37]} 17. Bxh6 {[%clk 0:02:17]}  Nxe5 {[%clk 0:01:37]} 18. Bf4 {[%clk 0:01:54]}  Nxf3+ {[%clk 0:01:32]} 19. Nxf3 {[%clk 0:01:52]}  Nxc4 {[%clk 0:01:24]} 20. Bxc7 {[%clk 0:01:52]}  Nxe3 {[%clk 0:01:24]} 21. fxe3 {[%clk 0:01:52]}  Bxb2 {[%clk 0:01:16]} 22. Rab1 {[%clk 0:01:53]}  Bf6 {[%clk 0:01:16]} 23. Rxb7 {[%clk 0:01:53]}  Bxa2 {[%clk 0:01:17]} 24. Be5 {[%clk 0:01:47]}  a4 {[%clk 0:01:15]} 25. Ra1 {[%clk 0:01:44]}  Bd5 {[%clk 0:00:57]} 26. e4 {[%clk 0:01:39]}  Bb3 {[%clk 0:00:50]} 27. Bxb3 {[%clk 0:01:37]}  axb3 {[%clk 0:00:51]} 28. Rxa8 {[%clk 0:01:36]}  Rxa8 {[%clk 0:00:52]} 29. Bxf6 {[%clk 0:01:34]}  exf6 {[%clk 0:00:53]} 30. Rxb3 {[%clk 0:01:34]}  Ra4 {[%clk 0:00:53]} 31. Re3 {[%clk 0:01:22]}  c5 {[%clk 0:00:50]} 32. Kf2 {[%clk 0:01:21]}  Kf8 {[%clk 0:00:49]} 33. Nd2 {[%clk 0:01:15]}  Ke7 {[%clk 0:00:48]} 34. Rc3 {[%clk 0:01:12]}  Kd6 {[%clk 0:00:45]} 35. Ke3 {[%clk 0:01:10]}  Ra1 {[%clk 0:00:43]} 36. Nb3 {[%clk 0:01:07]}  Re1+ {[%clk 0:00:42]} 37. Kf3 {[%clk 0:01:07]}  Rf1+ {[%clk 0:00:40]} 38. Ke2 {[%clk 0:01:06]}  Rg1 {[%clk 0:00:39]} 39. Kf2 {[%clk 0:01:05]}  Rb1 {[%clk 0:00:40]} 40. Nxc5 {[%clk 0:01:04]}  Ke5 {[%clk 0:00:39]} 41. Nd7+ {[%clk 0:00:59]}  Kd4 {[%clk 0:00:38]} 42. Rf3 {[%clk 0:00:55]}  Rb2+ {[%clk 0:00:36]} 43. Kg1 {[%clk 0:00:52]} 1-0


[Site "https://www.chess.com"]

[Event "Titled Tuesday Blitz October 11 Late 2022"]
[White "Rosenberg, Evan S"]
[Black "Banzea, Alexandru-Bogdan"]
[WhiteFideId "2019299"]
[BlackFideId "1232622"]
[WhiteElo "2352"]
[BlackElo "2294"]
[Result "0-1"]
[Round "09"]
[TimeControl "180+1"]
[Date "2022.10.12"]
[WhiteClock "0:00:02"]
[BlackClock "0:00:10"]

1. e4 {[%clk 0:02:59]}  e6 {[%clk 0:02:56]} 2. d4 {[%clk 0:02:59]}  d5 {[%clk 0:02:56]} 3. e5 {[%clk 0:03:00]}  c5 {[%clk 0:02:55]} 4. c3 {[%clk 0:03:00]}  Qb6 {[%clk 0:02:56]} 5. Nf3 {[%clk 0:03:00]}  Bd7 {[%clk 0:02:53]} 6. a4 {[%clk 0:02:59]}  cxd4 {[%clk 0:02:52]} 7. cxd4 {[%clk 0:02:45]}  Nc6 {[%clk 0:02:51]} 8. Nc3 {[%clk 0:02:41]}  Nge7 {[%clk 0:02:45]} 9. Be2 {[%clk 0:02:38]}  Nf5 {[%clk 0:02:45]} 10. O-O {[%clk 0:02:36]}  Nfxd4 {[%clk 0:02:44]} 11. Nxd4 {[%clk 0:02:33]}  Qxd4 {[%clk 0:02:44]} 12. Qb3 {[%clk 0:02:22]}  Qb4 {[%clk 0:02:38]} 13. Qa2 {[%clk 0:02:05]}  Be7 {[%clk 0:02:30]} 14. f4 {[%clk 0:01:56]}  O-O {[%clk 0:02:29]} 15. Kh1 {[%clk 0:01:47]}  Nd4 {[%clk 0:02:27]} 16. Bd1 {[%clk 0:01:42]}  Qc4 {[%clk 0:02:13]} 17. Qxc4 {[%clk 0:01:32]}  dxc4 {[%clk 0:02:14]} 18. Be3 {[%clk 0:01:27]}  Nf5 {[%clk 0:02:13]} 19. Bg1 {[%clk 0:01:10]}  Bc6 {[%clk 0:02:13]} 20. Rc1 {[%clk 0:01:03]}  Nh4 {[%clk 0:02:12]} 21. Bf3 {[%clk 0:00:55]}  Nxf3 {[%clk 0:02:12]} 22. gxf3 {[%clk 0:00:56]}  Rfd8 {[%clk 0:02:12]} 23. Ne4 {[%clk 0:00:56]}  f5 {[%clk 0:02:00]} 24. exf6 {[%clk 0:00:52]}  gxf6 {[%clk 0:02:01]} 25. Rxc4 {[%clk 0:00:46]}  Rd3 {[%clk 0:02:01]} 26. Kg2 {[%clk 0:00:33]}  Kf7 {[%clk 0:01:57]} 27. Bc5 {[%clk 0:00:29]}  f5 {[%clk 0:01:13]} 28. Ng5+ {[%clk 0:00:17]}  Bxg5 {[%clk 0:01:06]} 29. fxg5 {[%clk 0:00:18]}  Rg8 {[%clk 0:01:02]} 30. h4 {[%clk 0:00:18]}  h6 {[%clk 0:01:02]} 31. Rd4 {[%clk 0:00:05]}  Rxd4 {[%clk 0:00:54]} 32. Bxd4 {[%clk 0:00:06]}  hxg5 {[%clk 0:00:55]} 33. hxg5 {[%clk 0:00:07]}  Rxg5+ {[%clk 0:00:56]} 34. Kf2 {[%clk 0:00:07]}  Rh5 {[%clk 0:00:56]} 35. Ke3 {[%clk 0:00:06]}  a6 {[%clk 0:00:44]} 36. b3 {[%clk 0:00:06]}  Rh3 {[%clk 0:00:31]} 37. Be5 {[%clk 0:00:05]}  Bd5 {[%clk 0:00:27]} 38. b4 {[%clk 0:00:05]}  Rh4 {[%clk 0:00:19]} 39. f4 {[%clk 0:00:04]}  Rh3+ {[%clk 0:00:18]} 40. Kd4 {[%clk 0:00:04]}  Ra3 {[%clk 0:00:19]} 41. a5 {[%clk 0:00:04]}  Ra2 {[%clk 0:00:12]} 42. Kc5 {[%clk 0:00:04]}  Rc2+ {[%clk 0:00:13]} 43. Kb6 {[%clk 0:00:03]}  Rc4 {[%clk 0:00:12]} 44. Bd6 {[%clk 0:00:03]}  Rc6+ {[%clk 0:00:11]} 45. Ka7 {[%clk 0:00:02]}  Rxd6 {[%clk 0:00:11]} 46. Rh1 {[%clk 0:00:02]}  Bxh1 {[%clk 0:00:10]} 0-1


[Site "https://www.chess.com"]

[Event "Titled Tuesday Blitz October 11 Late 2022"]
[White "Salman, Pavel"]
[Black "Petrova, Irina"]
[WhiteFideId "24153753"]
[BlackFideId "14124122"]
[WhiteElo "2187"]
[BlackElo "2023"]
[Result "1-0"]
[Round "09"]
[TimeControl "180+1"]
[Date "2022.10.12"]
[WhiteClock "0:00:19"]
[BlackClock "0:00:04"]

1. Nf3 {[%clk 0:02:59]}  d6 {[%clk 0:02:59]} 2. d4 {[%clk 0:02:58]}  g6 {[%clk 0:02:59]} 3. c4 {[%clk 0:02:59]}  Bg7 {[%clk 0:02:58]} 4. Nc3 {[%clk 0:02:59]}  Nc6 {[%clk 0:02:58]} 5. h4 {[%clk 0:02:56]}  h5 {[%clk 0:02:56]} 6. Bg5 {[%clk 0:02:55]}  Bg4 {[%clk 0:02:53]} 7. d5 {[%clk 0:02:48]}  Bxf3 {[%clk 0:02:42]} 8. gxf3 {[%clk 0:02:43]}  Ne5 {[%clk 0:02:40]} 9. Bh3 {[%clk 0:02:39]}  Nf6 {[%clk 0:02:36]} 10. Qa4+ {[%clk 0:02:35]}  Ned7 {[%clk 0:02:27]} 11. Bxf6 {[%clk 0:02:24]}  Bxf6 {[%clk 0:02:25]} 12. Ne4 {[%clk 0:02:25]}  Bg7 {[%clk 0:02:14]} 13. f4 {[%clk 0:02:17]}  f5 {[%clk 0:01:46]} 14. Ng5 {[%clk 0:02:17]}  O-O {[%clk 0:01:46]} 15. Ne6 {[%clk 0:02:16]}  Qc8 {[%clk 0:01:45]} 16. Nxf8 {[%clk 0:02:06]}  Nxf8 {[%clk 0:01:46]} 17. Rg1 {[%clk 0:02:05]}  Bxb2 {[%clk 0:01:41]} 18. Rb1 {[%clk 0:02:05]}  Bc3+ {[%clk 0:01:41]} 19. Kf1 {[%clk 0:02:06]}  Bg7 {[%clk 0:01:40]} 20. e4 {[%clk 0:02:01]}  e6 {[%clk 0:01:32]} 21. Rb3 {[%clk 0:01:54]}  c6 {[%clk 0:01:13]} 22. dxc6 {[%clk 0:01:33]}  bxc6 {[%clk 0:01:14]} 23. exf5 {[%clk 0:01:27]}  exf5 {[%clk 0:01:12]} 24. Bg2 {[%clk 0:01:25]}  Rb8 {[%clk 0:00:53]} 25. Qxc6 {[%clk 0:01:19]}  Qd8 {[%clk 0:00:44]} 26. Bd5+ {[%clk 0:01:12]}  Kh7 {[%clk 0:00:41]} 27. Rg5 {[%clk 0:00:54]}  Rxb3 {[%clk 0:00:39]} 28. axb3 {[%clk 0:00:54]}  Qe7 {[%clk 0:00:25]} 29. Qb7 {[%clk 0:00:42]}  Qf6 {[%clk 0:00:18]} 30. Qxa7 {[%clk 0:00:39]}  Qc3 {[%clk 0:00:17]} 31. Qe3 {[%clk 0:00:33]}  Qa1+ {[%clk 0:00:12]} 32. Kg2 {[%clk 0:00:33]}  Bf6 {[%clk 0:00:10]} 33. b4 {[%clk 0:00:26]}  Bxg5 {[%clk 0:00:09]} 34. hxg5 {[%clk 0:00:22]}  Qg7 {[%clk 0:00:09]} 35. b5 {[%clk 0:00:22]}  Nd7 {[%clk 0:00:09]} 36. b6 {[%clk 0:00:21]}  Nc5 {[%clk 0:00:09]} 37. Qe8 {[%clk 0:00:16]}  h4 {[%clk 0:00:07]} 38. Qf7 {[%clk 0:00:15]}  Qxf7 {[%clk 0:00:06]} 39. Bxf7 {[%clk 0:00:16]}  Kg7 {[%clk 0:00:04]} 40. Bd5 {[%clk 0:00:16]}  Kf8 {[%clk 0:00:04]} 41. b7 {[%clk 0:00:17]}  Na6 {[%clk 0:00:04]} 42. Kh3 {[%clk 0:00:17]}  Ke8 {[%clk 0:00:04]} 43. Kxh4 {[%clk 0:00:17]}  Kd8 {[%clk 0:00:05]} 44. Bf7 {[%clk 0:00:18]}  Kc7 {[%clk 0:00:04]} 45. Bxg6 {[%clk 0:00:18]}  Nc5 {[%clk 0:00:04]} 46. Bxf5 {[%clk 0:00:19]}  Nxb7 {[%clk 0:00:04]} 47. g6 {[%clk 0:00:19]} 1-0


[Site "https://www.chess.com"]

[Event "Titled Tuesday Blitz October 11 Late 2022"]
[White "Sanal, Vahap"]
[Black "Vazquez, Guillermo"]
[WhiteFideId "6300545"]
[BlackFideId "3702308"]
[WhiteElo "2574"]
[BlackElo "2543"]
[Result "1-0"]
[Round "09"]
[TimeControl "180+1"]
[Date "2022.10.11"]
[WhiteClock "0:01:43"]
[BlackClock "0:00:04"]

1. Nf3 {[%clk 0:03:00]}  d5 {[%clk 0:03:00]} 2. b3 {[%clk 0:03:00]}  Bf5 {[%clk 0:02:56]} 3. Bb2 {[%clk 0:03:00]}  e6 {[%clk 0:02:57]} 4. g3 {[%clk 0:02:56]}  Nf6 {[%clk 0:02:57]} 5. Bg2 {[%clk 0:02:56]}  h6 {[%clk 0:02:57]} 6. O-O {[%clk 0:02:56]}  Be7 {[%clk 0:02:55]} 7. d3 {[%clk 0:02:56]}  O-O {[%clk 0:02:55]} 8. Nbd2 {[%clk 0:02:57]}  Bh7 {[%clk 0:02:54]} 9. Re1 {[%clk 0:02:57]}  a5 {[%clk 0:02:53]} 10. a4 {[%clk 0:02:57]}  c6 {[%clk 0:02:40]} 11. e4 {[%clk 0:02:57]}  Nbd7 {[%clk 0:02:35]} 12. Qe2 {[%clk 0:02:57]}  Rc8 {[%clk 0:02:32]} 13. Rad1 {[%clk 0:02:57]}  Qb6 {[%clk 0:02:30]} 14. Bh3 {[%clk 0:02:48]}  Bb4 {[%clk 0:02:13]} 15. Kh1 {[%clk 0:02:41]}  Rfd8 {[%clk 0:02:02]} 16. e5 {[%clk 0:02:37]}  Ne8 {[%clk 0:02:00]} 17. g4 {[%clk 0:02:37]}  c5 {[%clk 0:01:39]} 18. g5 {[%clk 0:02:36]}  h5 {[%clk 0:01:20]} 19. c3 {[%clk 0:02:36]}  c4 {[%clk 0:01:16]} 20. d4 {[%clk 0:02:13]}  Be7 {[%clk 0:01:08]} 21. Nh4 {[%clk 0:02:06]}  cxb3 {[%clk 0:00:54]} 22. Qxh5 {[%clk 0:02:04]}  Nf8 {[%clk 0:00:55]} 23. Rg1 {[%clk 0:01:59]}  Ng6 {[%clk 0:00:49]} 24. Nxg6 {[%clk 0:01:57]}  Bxg6 {[%clk 0:00:50]} 25. Qh4 {[%clk 0:01:58]}  Bf5 {[%clk 0:00:24]} 26. Rg3 {[%clk 0:01:54]}  Bc2 {[%clk 0:00:04]} 27. Bg4 {[%clk 0:01:43]} 1-0


[Site "https://www.chess.com"]

[Event "Titled Tuesday Blitz October 11 Late 2022"]
[White "Sargsyan, Anna M."]
[Black "Vega Gutierrez, Sabrina"]
[WhiteFideId "13308130"]
[BlackFideId "2219026"]
[WhiteElo "2284"]
[BlackElo "2261"]
[Result "1-0"]
[Round "09"]
[TimeControl "180+1"]
[Date "2022.10.12"]
[WhiteClock "0:00:03"]
[BlackClock "0:00:01"]

1. d4 {[%clk 0:02:57]}  d5 {[%clk 0:02:59]} 2. c4 {[%clk 0:02:57]}  e6 {[%clk 0:03:00]} 3. Nf3 {[%clk 0:02:58]}  c6 {[%clk 0:03:00]} 4. Nc3 {[%clk 0:02:58]}  dxc4 {[%clk 0:03:00]} 5. a4 {[%clk 0:02:49]}  Bb4 {[%clk 0:02:59]} 6. Ne5 {[%clk 0:02:46]}  b5 {[%clk 0:02:57]} 7. e3 {[%clk 0:02:46]}  Nf6 {[%clk 0:02:47]} 8. Bd2 {[%clk 0:02:42]}  a5 {[%clk 0:02:37]} 9. axb5 {[%clk 0:02:40]}  Bxc3 {[%clk 0:02:37]} 10. bxc3 {[%clk 0:02:16]}  cxb5 {[%clk 0:02:38]} 11. Rb1 {[%clk 0:02:16]}  Bd7 {[%clk 0:02:26]} 12. Qf3 {[%clk 0:02:07]}  Ra6 {[%clk 0:02:26]} 13. Qb7 {[%clk 0:01:49]}  O-O {[%clk 0:02:26]} 14. Be2 {[%clk 0:01:45]}  Rb6 {[%clk 0:02:24]} 15. Qa7 {[%clk 0:01:37]}  a4 {[%clk 0:02:13]} 16. Nxc4 {[%clk 0:01:28]}  Ra6 {[%clk 0:02:08]} 17. Qc5 {[%clk 0:01:21]}  bxc4 {[%clk 0:02:07]} 18. Bxc4 {[%clk 0:01:19]}  Ra5 {[%clk 0:01:23]} 19. Qa3 {[%clk 0:01:07]}  Ne4 {[%clk 0:01:20]} 20. Bc1 {[%clk 0:01:05]}  Qh4 {[%clk 0:01:04]} 21. g3 {[%clk 0:00:53]}  Qh3 {[%clk 0:01:01]} 22. Bd3 {[%clk 0:00:52]}  Qg2 {[%clk 0:00:53]} 23. Rf1 {[%clk 0:00:49]}  Rc8 {[%clk 0:00:45]} 24. c4 {[%clk 0:00:42]}  Rf5 {[%clk 0:00:36]} 25. f4 {[%clk 0:00:27]}  Rh5 {[%clk 0:00:29]} 26. Rb2 {[%clk 0:00:22]}  Qh3 {[%clk 0:00:03]} 27. Bxe4 {[%clk 0:00:22]}  Nc6 {[%clk 0:00:04]} 28. c5 {[%clk 0:00:15]}  Ne7 {[%clk 0:00:03]} 29. Bf3 {[%clk 0:00:11]}  Rh6 {[%clk 0:00:03]} 30. Rb7 {[%clk 0:00:09]}  Bc6 {[%clk 0:00:02]} 31. Rxe7 {[%clk 0:00:08]}  Bxf3 {[%clk 0:00:02]} 32. Rxf3 {[%clk 0:00:08]}  Qxh2 {[%clk 0:00:02]} 33. Qb2 {[%clk 0:00:06]}  Qg1+ {[%clk 0:00:02]} 34. Rf1 {[%clk 0:00:05]}  Qxg3+ {[%clk 0:00:03]} 35. Qf2 {[%clk 0:00:06]}  Qg6 {[%clk 0:00:03]} 36. f5 {[%clk 0:00:05]}  Qf6 {[%clk 0:00:03]} 37. Ra7 {[%clk 0:00:03]}  exf5 {[%clk 0:00:02]} 38. Qxf5 {[%clk 0:00:03]}  Qh4+ {[%clk 0:00:02]} 39. Qf2 {[%clk 0:00:03]}  Rf6 {[%clk 0:00:01]} 40. Qxh4 {[%clk 0:00:03]} 1-0


[Site "https://www.chess.com"]

[Event "Titled Tuesday Blitz October 11 Late 2022"]
[White "Skatchkov, Valery"]
[Black "Matinian, Nikita"]
[WhiteFideId "24195812"]
[BlackFideId "24129100"]
[WhiteElo "2199"]
[BlackElo "2422"]
[Result "0-1"]
[Round "09"]
[TimeControl "180+1"]
[Date "2022.10.11"]
[WhiteClock "0:00:12"]
[BlackClock "0:00:47"]

1. d4 {[%clk 0:02:57]}  d6 {[%clk 0:03:00]} 2. e4 {[%clk 0:02:43]}  g6 {[%clk 0:03:01]} 3. Nc3 {[%clk 0:02:41]}  a6 {[%clk 0:03:00]} 4. h4 {[%clk 0:02:40]}  h5 {[%clk 0:02:54]} 5. Nf3 {[%clk 0:02:36]}  Bg4 {[%clk 0:02:53]} 6. Be2 {[%clk 0:02:35]}  Nc6 {[%clk 0:02:52]} 7. Be3 {[%clk 0:02:32]}  Nf6 {[%clk 0:02:47]} 8. Qd2 {[%clk 0:02:27]}  Bg7 {[%clk 0:02:47]} 9. O-O-O {[%clk 0:02:25]}  O-O {[%clk 0:02:47]} 10. d5 {[%clk 0:02:23]}  Bxf3 {[%clk 0:02:46]} 11. gxf3 {[%clk 0:02:22]}  Ne5 {[%clk 0:02:44]} 12. f4 {[%clk 0:02:18]}  Neg4 {[%clk 0:02:44]} 13. Bd4 {[%clk 0:02:18]}  c5 {[%clk 0:02:38]} 14. dxc6 {[%clk 0:02:18]}  bxc6 {[%clk 0:02:38]} 15. f3 {[%clk 0:02:19]}  c5 {[%clk 0:02:27]} 16. Bg1 {[%clk 0:02:19]}  Nh6 {[%clk 0:02:26]} 17. f5 {[%clk 0:02:19]}  Kh7 {[%clk 0:02:22]} 18. Be3 {[%clk 0:02:13]}  Rb8 {[%clk 0:02:21]} 19. Rdg1 {[%clk 0:02:04]}  Qb6 {[%clk 0:02:20]} 20. Na4 {[%clk 0:01:42]}  Qb4 {[%clk 0:02:20]} 21. Qxb4 {[%clk 0:01:41]}  Rxb4 {[%clk 0:02:21]} 22. fxg6+ {[%clk 0:01:42]}  fxg6 {[%clk 0:02:20]} 23. b3 {[%clk 0:01:42]}  Nf7 {[%clk 0:01:39]} 24. Bxa6 {[%clk 0:01:38]}  Ne5 {[%clk 0:01:36]} 25. Be2 {[%clk 0:01:37]}  Nxe4 {[%clk 0:01:25]} 26. fxe4 {[%clk 0:01:00]}  Rxe4 {[%clk 0:01:26]} 27. Rh3 {[%clk 0:01:01]}  Rxe3 {[%clk 0:01:20]} 28. Rxe3 {[%clk 0:01:00]}  Bh6 {[%clk 0:01:20]} 29. Rg5 {[%clk 0:01:01]}  Rf4 {[%clk 0:01:19]} 30. Nxc5 {[%clk 0:00:27]}  Rxh4 {[%clk 0:01:16]} 31. Ne6 {[%clk 0:00:19]}  Nf7 {[%clk 0:01:08]} 32. Reg3 {[%clk 0:00:19]}  Re4 {[%clk 0:01:03]} 33. Bc4 {[%clk 0:00:18]}  Rxe6 {[%clk 0:01:01]} 34. Bxe6 {[%clk 0:00:18]}  Nxg5 {[%clk 0:01:02]} 35. Rxg5 {[%clk 0:00:19]}  Bxg5+ {[%clk 0:01:01]} 36. Kd1 {[%clk 0:00:20]}  Be3 {[%clk 0:01:00]} 37. a4 {[%clk 0:00:21]}  g5 {[%clk 0:00:56]} 38. b4 {[%clk 0:00:21]}  Kg6 {[%clk 0:00:56]} 39. a5 {[%clk 0:00:20]}  Kf6 {[%clk 0:00:56]} 40. Bd7 {[%clk 0:00:20]}  e6 {[%clk 0:00:55]} 41. Be8 {[%clk 0:00:19]}  h4 {[%clk 0:00:55]} 42. b5 {[%clk 0:00:19]}  Ke7 {[%clk 0:00:53]} 43. Bh5 {[%clk 0:00:19]}  d5 {[%clk 0:00:52]} 44. Bg4 {[%clk 0:00:19]}  Kd6 {[%clk 0:00:51]} 45. Ke2 {[%clk 0:00:19]}  Bc5 {[%clk 0:00:51]} 46. Kd3 {[%clk 0:00:20]}  e5 {[%clk 0:00:51]} 47. c4 {[%clk 0:00:20]}  e4+ {[%clk 0:00:52]} 48. Kc2 {[%clk 0:00:20]}  d4 {[%clk 0:00:51]} 49. Bf5 {[%clk 0:00:21]}  d3+ {[%clk 0:00:49]} 50. Kd2 {[%clk 0:00:17]}  Ke5 {[%clk 0:00:49]} 51. b6 {[%clk 0:00:12]}  Kxf5 {[%clk 0:00:47]} 0-1


[Site "https://www.chess.com"]

[Event "Titled Tuesday Blitz October 11 Late 2022"]
[White "Stanisz, Patryk"]
[Black "Garmash, Aliona"]
[WhiteFideId "1123106"]
[BlackFideId "34127620"]
[WhiteElo "2069"]
[BlackElo "1980"]
[Result "1-0"]
[Round "09"]
[TimeControl "180+1"]
[Date "2022.10.12"]
[WhiteClock "0:00:02"]
[BlackClock "0:00:01"]

1. d4 {[%clk 0:03:00]}  d5 {[%clk 0:02:58]} 2. c4 {[%clk 0:03:00]}  c6 {[%clk 0:02:58]} 3. Nf3 {[%clk 0:03:00]}  Nf6 {[%clk 0:02:57]} 4. Nc3 {[%clk 0:03:00]}  dxc4 {[%clk 0:02:55]} 5. a4 {[%clk 0:03:00]}  Bf5 {[%clk 0:02:55]} 6. e3 {[%clk 0:03:00]}  e6 {[%clk 0:02:56]} 7. Bxc4 {[%clk 0:03:00]}  Bb4 {[%clk 0:02:56]} 8. O-O {[%clk 0:03:01]}  O-O {[%clk 0:02:57]} 9. h3 {[%clk 0:03:01]}  Nbd7 {[%clk 0:02:55]} 10. Qb3 {[%clk 0:03:02]}  Qb6 {[%clk 0:02:34]} 11. Na2 {[%clk 0:02:58]}  Be7 {[%clk 0:02:29]} 12. Nh4 {[%clk 0:02:46]}  Be4 {[%clk 0:02:21]} 13. Nc3 {[%clk 0:02:38]}  Bd5 {[%clk 0:02:04]} 14. Qxb6 {[%clk 0:02:35]}  Nxb6 {[%clk 0:02:02]} 15. Bd3 {[%clk 0:02:28]}  a5 {[%clk 0:01:51]} 16. Re1 {[%clk 0:02:14]}  Bc4 {[%clk 0:01:50]} 17. Bc2 {[%clk 0:02:14]}  Nfd5 {[%clk 0:01:46]} 18. Nf3 {[%clk 0:02:10]}  Nb4 {[%clk 0:01:45]} 19. Bb1 {[%clk 0:01:56]}  Nd3 {[%clk 0:01:43]} 20. Bxd3 {[%clk 0:01:52]}  Bxd3 {[%clk 0:01:43]} 21. Ne5 {[%clk 0:01:53]}  Ba6 {[%clk 0:01:42]} 22. b3 {[%clk 0:01:48]}  Rad8 {[%clk 0:01:33]} 23. Ba3 {[%clk 0:01:42]}  Bxa3 {[%clk 0:01:28]} 24. Rxa3 {[%clk 0:01:43]}  f6 {[%clk 0:01:28]} 25. Nf3 {[%clk 0:01:41]}  Nd5 {[%clk 0:01:26]} 26. Ne4 {[%clk 0:01:38]}  Nb4 {[%clk 0:01:21]} 27. Rc1 {[%clk 0:01:27]}  Rfe8 {[%clk 0:01:00]} 28. Raa1 {[%clk 0:01:24]}  Be2 {[%clk 0:00:46]} 29. Nfd2 {[%clk 0:01:04]}  e5 {[%clk 0:00:45]} 30. dxe5 {[%clk 0:01:02]}  Rxe5 {[%clk 0:00:44]} 31. f4 {[%clk 0:00:35]}  Re7 {[%clk 0:00:41]} 32. Kf2 {[%clk 0:00:36]}  Ba6 {[%clk 0:00:39]} 33. Rd1 {[%clk 0:00:33]}  Red7 {[%clk 0:00:32]} 34. f5 {[%clk 0:00:27]}  Rd5 {[%clk 0:00:29]} 35. g4 {[%clk 0:00:25]}  Nd3+ {[%clk 0:00:17]} 36. Kg3 {[%clk 0:00:22]}  Ne5 {[%clk 0:00:16]} 37. Re1 {[%clk 0:00:09]}  Rxd2 {[%clk 0:00:16]} 38. Nxd2 {[%clk 0:00:10]}  Rxd2 {[%clk 0:00:16]} 39. Rad1 {[%clk 0:00:10]}  Rxd1 {[%clk 0:00:15]} 40. Rxd1 {[%clk 0:00:11]}  Kf7 {[%clk 0:00:15]} 41. e4 {[%clk 0:00:09]}  Ke7 {[%clk 0:00:15]} 42. h4 {[%clk 0:00:07]}  h6 {[%clk 0:00:15]} 43. Rd2 {[%clk 0:00:05]}  Bd3 {[%clk 0:00:14]} 44. Kf4 {[%clk 0:00:04]}  Bb1 {[%clk 0:00:13]} 45. g5 {[%clk 0:00:04]}  hxg5+ {[%clk 0:00:12]} 46. hxg5 {[%clk 0:00:05]}  Nd7 {[%clk 0:00:11]} 47. gxf6+ {[%clk 0:00:04]}  gxf6 {[%clk 0:00:11]} 48. Rh2 {[%clk 0:00:05]}  Nc5 {[%clk 0:00:09]} 49. Rh7+ {[%clk 0:00:04]}  Kf8 {[%clk 0:00:09]} 50. e5 {[%clk 0:00:04]}  fxe5+ {[%clk 0:00:08]} 51. Kxe5 {[%clk 0:00:04]}  Nxb3 {[%clk 0:00:08]} 52. Rxb7 {[%clk 0:00:03]}  Bc2 {[%clk 0:00:06]} 53. Kf6 {[%clk 0:00:02]}  Ke8 {[%clk 0:00:05]} 54. Rb8+ {[%clk 0:00:02]}  Kd7 {[%clk 0:00:05]} 55. Ra8 {[%clk 0:00:03]}  c5 {[%clk 0:00:04]} 56. Ke5 {[%clk 0:00:02]}  c4 {[%clk 0:00:02]} 57. Ra7+ {[%clk 0:00:02]}  Kc6 {[%clk 0:00:01]} 58. Ra6+ {[%clk 0:00:02]}  Kc5 {[%clk 0:00:01]} 59. Ra8 {[%clk 0:00:02]} 1-0


[Site "https://www.chess.com"]